bitfinex-derivatives/quotes_BNBF0:USTF0_20250406
["timestamp","ask_amount","ask_price","bid_price","bid_amount"]
[1743954934465,0.677,581.25,580.96,0.28162299]
[1743954934768,0.677,581.25,580.97,0.28162299]
[1743954935068,0.677,581.25,580.98,0.28162299]
[1743954935268,0.677,581.25,580.83,0.28162299]
[1743954935465,0.677,581.25,580.84,0.28162299]
[1743954935665,0.677,581.25,580.83,0.28162299]
[1743954937471,0.715,581.24,580.83,0.28162299]
[1743954937965,0.715,581.24,580.82,0.28162299]
[1743954938170,0.715,581.24,580.84,0.28162299]
[1743954938369,0.715,581.24,580.85,0.28162299]
[1743954938569,0.715,581.24,580.82,0.28162299]
[1743954939772,0.715,581.24,580.81,1.28136793]
[1743954939969,0.715,581.24,580.82,0.28172468]
[1743954940673,0.715,581.24,580.81,0.28172468]
[1743954941374,0.715,581.24,580.8,1.28136793]
[1743954941576,0.715,581.24,580.81,0.28173416]
[1743954942073,0.715,581.24,580.8,1.28136793]
[1743954942273,0.715,581.24,580.81,0.281726]
[1743954942775,0.715,581.24,580.81,1.56309393]
[1743954942974,0.715,581.24,580.82,0.281726]
[1743954943174,0.715,581.24,580.81,1.28136793]
[1743954943369,0.715,581.24,580.82,0.28172298]
[1743954944672,0.715,581.24,580.81,1.28136793]
[1743954944876,0.715,581.24,580.82,0.28172984]
[1743954947076,0.715,581.24,580.81,0.28172984]
[1743954949776,0.715,581.24,580.8,0.28172984]
[1743954950772,0.974,581.23,580.8,0.28172984]
[1743954951677,0.974,581.23,580.84,1.28136793]
[1743954951975,0.974,581.23,580.85,0.28172984]
[1743954954878,0.974,581.23,580.86,0.28172984]
[1743954955078,0.974,581.23,580.75,0.28172984]
[1743954955378,0.974,581.23,580.76,0.62610617]
[1743954955579,0.974,581.23,580.77,0.62610024]
[1743954955879,0.974,581.23,580.78,0.28172984]
[1743954956078,0.996,581.22,580.78,0.28172984]
[1743954957280,1.763,581.21,580.78,0.28172984]
[1743954957879,0.838,581.2,580.78,0.28172984]
[1743954959682,0.838,581.2,580.77,0.64376387]
[1743954959880,0.838,581.2,580.78,0.28142497]
[1743954961879,0.838,581.2,580.77,0.64376387]
[1743954962075,0.838,581.2,580.78,0.28131626]
[1743954962481,0.838,581.2,580.79,0.28131626]
[1743954962782,0.838,581.2,580.8,0.62566887]
[1743954962983,0.838,581.2,580.81,0.62566294]
[1743954963177,0.838,581.2,580.82,0.28131626]
[1743954963378,0.838,581.2,580.83,0.28131626]
[1743954963677,0.838,581.2,580.84,0.28131626]
[1743954963879,0.838,581.2,580.95,1.28136793]
[1743954964084,0.838,581.2,580.96,0.28131626]
[1743954965983,0.838,581.2,580.95,0.28131626]
[1743954966182,0.838,581.2,580.96,0.28131626]
[1743954966388,0.838,581.2,580.95,0.28131626]
[1743954966583,0.838,581.2,580.96,0.28131626]
[1743954966787,0.838,581.2,580.95,0.28131626]
[1743954966983,0.838,581.2,580.96,0.28131626]
[1743954967188,0.838,581.2,580.97,0.28131626]
[1743954967387,0.838,581.2,580.95,0.28131626]
[1743954967688,0.838,581.2,580.96,0.28123292]
[1743954967887,0.838,581.2,580.97,0.28123292]
[1743954968084,0.838,581.2,580.95,0.28123292]
[1743954968289,0.838,581.2,580.96,0.28123292]
[1743954968590,0.838,581.2,580.97,0.28123292]
[1743954968888,0.838,581.2,580.98,0.28123292]
[1743954969286,0.838,581.2,580.93,1.28136793]
[1743954969287,0.838,581.2,580.99,0.28120623]
[1743954969484,0.838,581.2,581.0,0.28120623]
[1743954969685,0.838,581.2,580.94,0.28120623]
[1743954969990,0.838,581.2,580.95,0.28120623]
[1743954970190,0.838,581.2,580.96,0.28122772]
[1743954970386,0.838,581.2,580.81,0.34434668]
[1743954970387,0.838,581.2,580.94,0.28122772]
[1743954970587,0.838,581.2,580.95,0.28122772]
[1743954970790,0.838,581.2,580.93,0.28122772]
[1743954970990,0.838,581.2,580.94,0.28122772]
[1743954971188,0.838,581.2,580.93,0.28122772]
[1743954971591,0.838,581.2,580.92,1.28136793]
[1743954971790,0.838,581.2,580.93,0.28121638]
[1743954972888,0.838,581.2,580.88,0.28121638]
[1743954974191,0.838,581.2,580.87,1.28136793]
[1743954974393,0.838,581.2,580.88,0.28122511]
[1743954975690,0.838,581.2,580.88,1.56259304]
[1743954975894,0.838,581.2,580.89,0.28122511]
[1743954978094,0.838,581.2,580.9,1.28136793]
[1743954978294,0.838,581.2,580.91,0.28122511]
[1743954979695,0.838,581.2,580.91,1.56259304]
[1743954979891,0.838,581.2,580.92,0.28122511]
[1743954980799,1.763,581.21,580.92,0.28122511]
[1743954981592,1.763,581.21,580.93,1.28136793]
[1743954981798,1.763,581.21,580.94,0.28122511]
[1743954982399,0.769,581.21,580.94,0.28122511]
[1743954982592,0.769,581.21,580.93,1.28136793]
[1743954982796,0.769,581.21,580.94,0.28111811]
[1743954984402,0.769,581.21,580.99,1.28136793]
[1743954984600,0.769,581.21,581.0,0.28111811]
[1743954987002,0.769,581.21,581.02,1.28136793]
[1743954987202,0.769,581.21,581.03,0.28111811]
[1743954989804,0.769,581.21,581.06,1.28136793]
[1743954990004,0.769,581.21,581.07,0.28111811]
[1743954990804,0.769,581.21,581.06,1.28136793]
[1743954991502,0.769,581.21,581.07,0.28117386]
[1743954992106,0.769,581.21,580.83,0.28117386]
[1743954992500,0.769,581.21,580.82,0.28117386]
[1743954993706,1.032,581.2,580.82,0.28117386]
[1743954994706,1.032,581.2,580.92,1.28136793]
[1743954994911,1.032,581.2,580.93,0.28117386]
[1743954997420,1.032,581.2,580.82,0.28117386]
[1743954997618,1.032,581.2,580.83,0.28128345]
[1743954997814,1.032,581.2,580.82,0.28128345]
[1743954998015,1.032,581.2,580.81,1.62571461]
[1743954998216,1.032,581.2,580.82,0.28127319]
[1743955000725,1.032,581.2,580.81,0.34434668]
[1743955000920,1.032,581.2,580.82,0.28127559]
[1743955002823,1.73,581.2,580.82,0.28127559]
[1743955005727,1.73,581.2,580.81,0.34434668]
[1743955005925,1.73,581.2,580.82,0.28127175]
[1743955006426,1.73,581.2,580.81,0.34434668]
[1743955006624,1.73,581.2,580.82,0.28126304]
[1743955007521,1.73,581.2,580.81,0.34434668]
[1743955007722,1.73,581.2,580.82,0.28126916]
[1743955009125,1.73,581.2,580.81,0.34434668]
[1743955009326,1.73,581.2,580.82,0.28126985]
[1743955010825,2.739,581.2,580.82,0.28126985]
[1743955011121,3.412,581.2,580.82,0.28126985]
[1743955011522,3.412,581.2,580.81,0.34434668]
[1743955011723,3.412,581.2,580.82,0.28130801]
[1743955012826,3.412,581.2,580.83,0.28132835]
[1743955013122,3.412,581.2,580.84,0.28132835]
[1743955013321,3.412,581.2,580.82,0.28132835]
[1743955015921,3.412,581.2,580.83,0.28142818]
[1743955016126,4.592,581.2,580.6,0.28142818]
[1743955016326,4.592,581.2,580.61,0.28142818]
[1743955016528,4.592,581.2,580.6,0.28142818]
[1743955016923,4.592,581.2,580.59,0.28142818]
[1743955019632,4.592,581.2,580.51,0.28142818]
[1743955019828,4.592,581.2,580.52,0.28142818]
[1743955020033,4.592,581.2,580.51,0.28142818]
[1743955020232,4.592,581.2,580.52,0.28142818]
[1743955020434,4.592,581.2,580.51,0.28142818]
[1743955022230,4.592,581.2,580.51,0.62595282]
[1743955022436,4.592,581.2,580.52,0.28134292]
[1743955026234,4.592,581.2,580.51,1.92538653]
[1743955026431,4.592,581.2,580.52,0.28127059]
[1743955027233,4.592,581.2,580.57,1.2852962]
[1743955027433,4.592,581.2,580.64,1.28136793]
[1743955027637,4.592,581.2,580.65,0.2812762]
[1743955028939,4.592,581.2,580.64,1.28136793]
[1743955029140,4.592,581.2,580.65,0.28128151]
[1743955030040,4.592,581.2,580.69,1.28136793]
[1743955030239,4.592,581.2,580.7,0.28128151]
[1743955031236,4.592,581.2,580.69,1.28136793]
[1743955031440,4.592,581.2,580.7,0.28128666]
[1743955031735,4.592,581.2,580.69,1.28136793]
[1743955031939,4.592,581.2,580.7,0.28128965]
[1743955034042,4.592,581.2,580.71,0.28127504]
[1743955034342,4.592,581.2,580.72,0.28127504]
[1743955034537,4.592,581.2,580.7,0.28127504]
[1743955035143,4.592,581.2,580.7,1.56264297]
[1743955035342,4.592,581.2,580.71,0.28127504]
[1743955036347,4.592,581.2,580.7,1.28136793]
[1743955036540,4.592,581.2,580.71,0.28128052]
[1743955037443,4.592,581.2,580.7,1.28136793]
[1743955037645,4.592,581.2,580.71,1.56265138]
[1743955037944,4.592,581.2,580.72,0.28128345]
[1743955039046,4.592,581.2,580.71,1.28136793]
[1743955039246,4.592,581.2,580.72,0.28128588]
[1743955039446,4.592,581.2,580.72,1.56265381]
[1743955039647,4.592,581.2,580.73,0.28128588]
[1743955041347,4.592,581.2,580.72,1.28136793]
[1743955041647,4.592,581.2,580.73,0.2812929]
[1743955042447,4.592,581.2,580.72,1.28136793]
[1743955042748,4.592,581.2,580.73,0.28127998]
[1743955042941,4.592,581.2,580.71,0.28127998]
[1743955044048,4.592,581.2,580.7,1.28136793]
[1743955044243,4.592,581.2,580.71,0.28128986]
[1743955045657,4.592,581.2,580.7,1.28136793]
[1743955045851,4.592,581.2,580.79,1.28136793]
[1743955046052,4.592,581.2,580.8,0.28128977]
[1743955047957,4.592,581.2,580.79,0.28128977]
[1743955048257,4.592,581.2,580.8,0.28128977]
[1743955048553,4.592,581.2,580.81,0.28128977]
[1743955048756,4.592,581.2,580.79,0.28128977]
[1743955048953,4.592,581.2,580.8,0.28128977]
[1743955049157,4.592,581.2,580.78,1.28136793]
[1743955049356,4.592,581.2,580.79,0.28125174]
[1743955049957,4.592,581.2,580.79,1.56261967]
[1743955050155,4.592,581.2,580.8,0.28125174]
[1743955052757,4.592,581.2,580.81,0.28125174]
[1743955052954,4.592,581.2,580.75,0.28125174]
[1743955054159,4.592,581.2,580.74,1.28136793]
[1743955054365,4.592,581.2,580.75,0.28123287]
[1743955055767,4.592,581.2,580.74,1.28136793]
[1743955056068,4.592,581.2,580.75,0.28124528]
[1743955057168,4.592,581.2,580.76,0.28124528]
[1743955057468,4.592,581.2,580.77,0.28124528]
[1743955057767,4.592,581.2,580.78,0.28121157]
[1743955057975,4.592,581.2,580.79,0.28121157]
[1743955058168,4.592,581.2,580.67,0.28121157]
[1743955059069,4.592,581.2,580.73,1.28136793]
[1743955059473,4.592,581.2,580.74,0.28124502]
[1743955060876,4.592,581.2,580.73,1.28136793]
[1743955061077,4.592,581.2,580.74,0.28114912]
[1743955061975,4.592,581.2,580.71,0.28114912]
[1743955062171,4.592,581.2,580.7,1.28136793]
[1743955062172,4.592,581.2,580.72,0.28114912]
[1743955062475,4.592,581.2,580.73,0.28114912]
[1743955062676,4.592,581.2,580.71,0.28114912]
[1743955062876,4.592,581.2,580.72,0.28114912]
[1743955063077,4.592,581.2,580.71,0.28114912]
[1743955064377,4.592,581.2,580.74,1.28136793]
[1743955064575,4.592,581.2,580.75,0.28111904]
[1743955066783,4.592,581.2,580.88,1.28136793]
[1743955066982,4.592,581.2,580.89,0.28111904]
[1743955067183,0.69993577,582.17,580.89,0.28111904]
[1743955067382,0.903341,581.89,580.89,0.28111904]
[1743955067580,1.24705448,581.88,580.89,0.28111904]
[1743955067779,1.24706038,581.87,580.89,0.28111904]
[1743955067983,1.24706629,581.86,580.89,0.28111904]
[1743955068284,2.50026068,581.85,580.89,0.28111904]
[1743955068486,1.2470781,581.84,580.89,0.28111904]
[1743955068683,0.93096187,581.83,580.89,0.28111904]
[1743955068881,2.15652948,581.82,580.89,0.28111904]
[1743955069084,2.15652948,581.81,580.89,1.56248697]
[1743955069381,0.903341,581.8,580.9,0.28111904]
[1743955069586,1.84040734,581.79,580.89,1.28136793]
[1743955069780,0.58724943,581.78,580.9,0.28116299]
[1743955069985,0.58724943,581.77,580.9,0.28116299]
[1743955070287,1.84043791,581.76,580.9,0.28116299]
[1743955070486,1.84043791,581.75,580.9,0.28116299]
[1743955070786,0.58724943,581.74,580.9,0.28116299]
[1743955070982,0.58724943,581.73,580.9,0.28116299]
[1743955071182,0.587242,581.72,580.9,0.28116299]
[1743955071486,1.84043048,581.71,580.89,0.28116299]
[1743955071684,1.25318848,581.71,580.9,0.28116299]
[1743955071887,1.84044574,581.7,580.89,0.28116299]
[1743955072082,0.58725726,581.69,580.89,0.28116299]
[1743955072287,1.84044574,581.68,580.89,0.28116299]
[1743955072488,0.58725726,581.67,580.89,0.28116299]
[1743955072682,0.58725726,581.66,580.89,0.28116299]
[1743955072884,1.84044574,581.65,580.89,0.28116299]
[1743955073086,0.58725726,581.64,580.89,0.28116299]
[1743955073287,1.84044574,581.63,580.89,0.28116299]
[1743955073485,0.58725726,581.62,580.89,0.28116299]
[1743955073688,0.58725726,581.61,580.89,0.28116299]
[1743955073890,1.84044574,581.6,580.89,0.28116299]
[1743955074185,0.58725726,581.59,580.9,0.28116299]
[1743955074390,1.84044574,581.58,580.82,0.28116299]
[1743955074587,0.58725726,581.57,580.83,0.28116299]
[1743955074884,0.58725726,581.56,580.84,0.28116299]
[1743955075090,0.58725726,581.55,580.82,0.28116299]
[1743955075386,1.84041532,581.54,580.83,0.28116299]
[1743955075589,0.58721778,581.53,580.82,0.28116299]
[1743955075789,0.58721778,581.52,580.82,0.28116299]
[1743955075989,0.58721778,581.51,580.82,0.28116299]
[1743955076190,1.84040626,581.5,580.82,0.28116299]
[1743955076490,1.84040626,581.49,580.82,0.28116299]
[1743955076691,0.58721778,581.48,580.82,1.56253092]
[1743955076893,1.84040626,581.47,580.83,0.28116299]
[1743955077093,0.58721778,581.46,580.83,0.28116299]
[1743955077290,1.84040626,581.45,580.83,0.28116299]
[1743955077490,1.25318848,581.45,580.83,0.28116299]
[1743955078088,1.25318848,581.44,580.83,0.28116299]
[1743955078293,1.25318848,581.44,580.84,0.28118282]
[1743955078594,0.29937029,581.59,580.85,0.28118282]
[1743955078595,1.25318848,581.43,580.85,0.28118282]
[1743955078793,1.25318848,581.43,580.83,0.28118282]
[1743955078994,1.25318848,581.42,580.78,0.28118282]
[1743955079193,1.25318848,581.42,580.79,0.28118282]
[1743955079391,1.25318848,581.42,580.78,0.28118282]
[1743955079694,1.25318848,581.41,580.79,0.28118282]
[1743955079895,1.25318848,581.41,580.78,0.28118282]
[1743955080194,0.58741282,581.54,580.78,0.28118282]
[1743955080394,0.58741282,581.53,580.78,0.28118282]
[1743955080596,0.58741282,581.52,580.78,0.28118282]
[1743955080792,1.84139006,581.51,580.78,0.28118282]
[1743955080997,0.58741282,581.5,580.78,0.28118282]
[1743955081196,0.58741282,581.49,580.78,0.28118282]
[1743955081396,0.58741282,581.48,580.78,0.28118282]
[1743955081597,1.84139006,581.47,580.78,0.28118282]
[1743955081790,0.58741282,581.46,580.8,1.28136793]
[1743955082092,0.58741282,581.45,580.81,0.28118282]
[1743955082297,0.58774085,581.44,580.81,0.28118282]
[1743955082492,1.25397724,581.44,580.81,0.28118282]
[1743955082992,1.25397724,581.44,580.82,0.28115847]
[1743955083198,1.25397724,581.43,580.81,0.28115847]
[1743955083900,0.58776749,581.54,580.81,0.28115847]
[1743955084198,0.58776749,581.53,580.81,0.28115847]
[1743955084398,0.58776749,581.52,580.81,0.28115847]
[1743955084698,0.29938446,581.55,580.81,0.28115847]
[1743955084699,0.58776749,581.51,580.88,1.28136793]
[1743955084895,0.58776749,581.5,580.89,0.28115847]
[1743955085098,0.58776749,581.49,580.89,0.28115847]
[1743955085398,1.84218585,581.48,580.89,0.28115847]
[1743955085598,0.58776749,581.47,580.89,0.28115847]
[1743955085898,1.25441836,581.48,580.89,0.28115847]
[1743955086099,0.58784931,581.47,580.89,0.28115847]
[1743955086295,0.58788614,581.46,580.89,0.28115847]
[1743955086493,2.55541836,581.47,580.89,0.28115847]
[1743955086694,1.25441836,581.45,580.89,0.28115847]
[1743955086998,1.24998548,581.45,580.84,0.28115847]
[1743955087294,1.24998548,581.45,580.85,0.28115847]
[1743955087498,1.301,581.47,580.85,0.28115847]
[1743955087695,0.58792666,581.46,580.86,0.28115847]
[1743955087999,1.301,581.47,580.84,0.28115847]
[1743955088200,0.58792602,581.46,580.85,0.28115847]
[1743955088399,1.301,581.47,580.84,0.28115847]
[1743955088598,0.58796994,581.46,580.84,0.28115847]
[1743955088894,1.301,581.47,580.84,0.28115847]
[1743955089099,0.58797527,581.46,580.84,0.28115847]
[1743955089296,0.58797527,581.45,580.84,0.28115847]
[1743955089501,1.301,581.47,580.84,0.28115847]
[1743955089702,0.58802816,581.46,580.84,0.28115847]
[1743955090001,0.58802816,581.45,580.85,0.28115847]
[1743955090196,1.301,581.47,580.85,0.28115847]
[1743955090396,0.58802965,581.46,580.86,0.28115847]
[1743955090596,0.58809254,581.45,580.83,0.28115847]
[1743955090797,1.301,581.47,580.83,0.28115847]
[1743955091096,0.58809254,581.46,580.83,0.28115847]
[1743955091300,0.58809254,581.45,580.83,0.28115847]
[1743955091500,1.301,581.47,580.82,1.28136793]
[1743955091700,0.58816343,581.46,580.83,0.28084286]
[1743955091897,0.58816343,581.45,580.83,0.28084286]
[1743955092097,1.301,581.47,580.83,0.28084286]
[1743955092301,0.58816333,581.46,580.83,0.28084286]
[1743955092503,0.58816333,581.45,580.83,0.28084286]
[1743955092804,0.5882353,581.44,580.83,0.28084286]
[1743955092998,1.301,581.47,580.83,0.28084286]
[1743955093202,0.58824226,581.46,580.83,0.28084286]
[1743955093503,0.58824226,581.45,580.83,0.28084286]
[1743955093703,0.58824226,581.44,580.82,0.28084286]
[1743955093904,0.734,581.46,580.82,0.28084286]
[1743955094102,0.58833989,581.45,580.82,0.28084286]
[1743955094302,0.588332,581.44,580.82,0.28084286]
[1743955094501,0.734,581.46,580.82,0.28084286]
[1743955094702,0.58834341,581.45,580.82,0.28084286]
[1743955094902,0.734,581.46,580.82,0.28084286]
[1743955095103,0.58833291,581.45,580.82,0.28084286]
[1743955095301,0.734,581.46,580.82,0.28084286]
[1743955095499,0.58832854,581.45,580.82,0.28084286]
[1743955095698,0.734,581.46,580.82,0.28084286]
[1743955095900,0.5883285,581.45,580.82,0.28084286]
[1743955096103,0.734,581.46,580.82,0.28084286]
[1743955096303,0.734,581.46,580.96,1.28136793]
[1743955096605,0.734,581.46,580.97,0.28084286]
[1743955096901,0.734,581.46,580.96,1.28136793]
[1743955097106,0.734,581.46,580.97,0.2808357]
[1743955097710,0.711,581.45,580.97,0.2808357]
[1743955099010,1.25537319,581.44,580.97,0.2808357]
[1743955099609,0.711,581.45,580.97,0.2808357]
[1743955101810,1.25534108,581.44,580.97,0.2808357]
[1743955102011,0.711,581.45,580.97,0.2808357]
[1743955102012,1.25534108,581.43,580.97,0.2808357]
[1743955102211,0.5882728,581.42,580.95,0.2808357]
[1743955102510,1.25534108,581.43,580.94,1.28136793]
[1743955102511,1.84361388,581.41,580.96,0.2808357]
[1743955102711,0.5882728,581.4,580.96,0.2808357]
[1743955102907,0.5882728,581.39,580.97,0.2808357]
[1743955103108,0.5882728,581.38,580.95,0.2808357]
[1743955103311,0.2791643,580.96,580.94,1.28136793]
[1743955104710,0.2791643,580.96,580.81,1.28136793]
[1743955107413,1.25534108,581.29,580.81,1.28136793]
[1743955107909,0.29945015,581.36,580.71,1.28136793]
[1743955108112,0.797,581.28,580.71,1.28136793]
[1743955110012,0.797,581.28,580.41,2.61324958]
[1743955110013,0.797,581.28,580.67,1.28136793]
[1743955111518,0.797,581.28,580.64,1.28136793]
[1743955112511,1.25416053,581.27,580.64,1.28136793]
[1743955112916,1.25416053,581.26,580.64,1.28136793]
[1743955113420,0.951,581.25,580.64,1.28136793]
[1743955115626,0.951,581.25,580.43,1.28136793]
[1743955116527,0.951,581.25,580.5,0.29951329]
[1743955117523,0.789,581.24,580.5,0.29951329]
[1743955118228,0.789,581.24,580.42,1.28136793]
[1743955118525,0.789,581.24,580.5,0.29950556]
[1743955121326,0.789,581.24,580.4,1.28136793]
[1743955121526,0.789,581.24,580.41,1.28136793]
[1743955121724,0.789,581.24,580.5,0.29950556]
[1743955123327,0.789,581.24,580.53,1.28136793]
[1743955123830,0.979,581.23,580.53,1.28136793]
[1743955125027,0.979,581.23,580.52,1.28136793]
[1743955128124,0.979,581.23,580.54,1.28136793]
[1743955128830,0.979,581.23,580.54,1.27290497]
[1743955131030,0.979,581.23,580.3,1.2852962]
[1743955131725,0.979,581.23,580.46,0.29954165]
[1743955131931,1.25143876,581.22,580.46,0.29954165]
[1743955132330,0.979,581.23,580.46,0.29954165]
[1743955133229,0.979,581.23,580.3,1.2852962]
[1743955133428,0.947,581.22,580.3,1.2852962]
[1743955133629,0.947,581.22,580.12,1.2852962]
[1743955133826,0.947,581.22,580.44,0.2995481]
[1743955136031,1.116,581.21,580.44,0.2995481]
[1743955136233,1.116,581.21,580.12,1.2852962]
[1743955136630,1.116,581.21,580.16,1.2852962]
[1743955137532,1.116,581.21,580.44,0.29956872]
[1743955138133,0.937,581.2,580.44,0.29956872]
[1743955138330,1.897,581.2,580.44,0.29956872]
[1743955139238,1.897,581.2,580.31,1.2852962]
[1743955140534,1.897,581.2,580.4,0.29956099]
[1743955140836,1.897,581.2,580.31,1.2852962]
[1743955141832,1.897,581.2,580.45,1.2852962]
[1743955144937,1.897,581.2,580.44,1.2852962]
[1743955147440,1.897,581.2,580.45,1.2852962]
[1743955149542,1.897,581.2,580.29,1.2852962]
[1743955150742,2.834,581.2,580.29,1.2852962]
[1743955151839,2.834,581.2,580.28,1.2852962]
[1743955156845,2.834,581.2,580.3,1.2852962]
[1743955159155,2.834,581.2,580.47,1.2852962]
[1743955160953,1.25172073,581.19,580.47,1.2852962]
[1743955161455,1.25172073,581.18,580.47,1.2852962]
[1743955162056,1.25172073,581.18,580.49,1.2852962]
[1743955162355,1.25172073,581.17,580.49,1.2852962]
[1743955162956,2.834,581.2,580.49,1.2852962]
[1743955163555,1.25268002,581.19,580.49,1.2852962]
[1743955163855,1.25268002,581.18,580.49,1.2852962]
[1743955164351,1.25268002,581.18,580.36,1.53595077]
[1743955164352,1.25268002,581.18,580.5,1.2852962]
[1743955165055,1.897,581.2,580.5,1.2852962]
[1743955165255,0.937,581.2,580.5,1.2852962]
[1743955165457,1.25289707,581.19,580.5,1.2852962]
[1743955165957,0.937,581.2,580.5,1.2852962]
[1743955166559,0.937,581.2,580.55,1.2852962]
[1743955166759,1.25303385,581.19,580.55,1.2852962]
[1743955167152,1.25303385,581.18,580.55,1.2852962]
[1743955167659,1.88,581.2,580.55,1.2852962]
[1743955168060,1.25317444,581.19,580.55,1.2852962]
[1743955168654,1.95217444,581.19,580.55,1.2852962]
[1743955168854,0.699,581.19,580.55,1.2852962]
[1743955171061,0.699,581.19,580.56,1.2852962]
[1743955171255,2.048,581.19,580.56,1.2852962]
[1743955171961,3.121,581.19,580.56,1.2852962]
[1743955173662,3.121,581.19,580.59,1.2852962]
[1743955175958,3.121,581.19,580.3,1.2852962]
[1743955180877,3.901,581.19,580.3,1.2852962]
[1743955181375,3.901,581.19,580.55,1.2852962]
[1743955182680,3.901,581.19,580.56,0.34449497]
[1743955187985,3.901,581.19,580.57,1.2852962]
[1743955188786,4.633,581.19,580.57,1.2852962]
[1743955190591,4.633,581.19,580.65,1.285264]
[1743955192484,4.633,581.19,580.57,1.285264]
[1743955195190,4.633,581.19,580.56,0.34449497]
[1743955201194,1.2527796,581.18,580.56,0.34449497]
[1743955201686,1.2527796,581.17,580.56,0.34449497]
[1743955202288,1.2527796,581.16,580.56,0.34449497]
[1743955202790,1.2527796,581.15,580.56,0.34449497]
[1743955203086,0.58712794,581.14,580.56,0.34449497]
[1743955203288,0.5871346,581.13,580.56,0.34449497]
[1743955203489,1.2527796,581.12,580.56,0.34449497]
[1743955203993,1.2527796,581.11,580.56,0.34449497]
[1743955204390,1.039,581.1,580.56,0.34449497]
[1743955204695,1.2527796,581.09,580.56,0.34449497]
[1743955204991,1.039,581.1,580.56,0.34449497]
[1743955205192,1.204,581.08,580.56,0.34449497]
[1743955205693,1.2529423,581.07,580.56,0.34449497]
[1743955206296,1.2529423,581.06,580.56,0.34449497]
[1743955206693,1.204,581.08,580.56,0.34449497]
[1743955207395,1.25285686,581.07,580.56,0.34449497]
[1743955207996,1.204,581.08,580.56,0.34449497]
[1743955208897,1.25284137,581.07,580.56,0.34449497]
[1743955209094,1.25284137,581.06,580.56,0.34449497]
[1743955209897,1.204,581.08,580.56,0.34449497]
[1743955210094,0.758,581.05,580.56,0.34449497]
[1743955211195,0.758,581.05,573.64,0.63261004]
[1743955211594,0.758,581.05,575.78,0.34735489]
[1743955221602,1.15,581.04,575.78,0.34735489]
[1743955223207,1.15,581.04,580.33,1.28399681]
[1743955224001,0.931,581.03,580.33,1.28399681]
[1743955224907,0.931,581.03,580.38,1.28399681]
[1743955226307,0.758,581.05,580.38,1.28399681]
[1743955229803,0.758,581.05,580.4,1.28399681]
[1743955232008,0.758,581.05,580.48,1.28399681]
[1743955232404,0.58634228,581.28,580.48,1.28399681]
[1743955232707,1.59549453,581.27,580.48,1.28399681]
[1743955232908,0.3440801,581.26,580.48,1.28399681]
[1743955233309,1.25142035,581.25,580.48,1.28399681]
[1743955233509,0.34409194,581.24,580.48,1.28399681]
[1743955233709,1.25142035,581.23,580.48,1.28399681]
[1743955233912,0.34410378,581.22,580.48,1.28399681]
[1743955234411,1.25142035,581.21,580.48,1.28399681]
[1743955234612,0.34411562,581.2,580.29,1.28399681]
[1743955235107,1.25142035,581.19,580.29,1.28399681]
[1743955235309,0.34412746,581.18,580.29,1.28399681]
[1743955237518,0.34412746,581.18,580.3,1.28399681]
[1743955240017,0.34412746,581.18,580.24,1.28399681]
[1743955246222,0.34412746,581.18,580.28,1.28399681]
[1743955246718,1.59554781,581.18,580.28,1.28399681]
[1743955247519,0.34412746,581.18,580.28,1.28399681]
[1743955248524,0.34412746,581.18,580.31,1.28399681]
[1743955249321,1.59554781,581.18,580.31,1.28399681]
[1743955249923,0.34412746,581.18,580.31,1.28399681]
[1743955250318,1.59554781,581.18,580.31,1.28399681]
[1743955251223,0.34412746,581.18,580.31,1.28399681]
[1743955252623,0.34412746,581.18,580.34,1.28399681]
[1743955253117,1.25142035,581.17,580.34,1.28399681]
[1743955253319,0.3441393,581.16,580.34,1.28399681]
[1743955253624,1.59555965,581.16,580.34,1.28399681]
[1743955254423,1.25142035,581.15,580.34,1.28399681]
[1743955254618,0.34415115,581.14,580.34,1.28399681]
[1743955255021,0.34415115,581.14,580.33,1.28399681]
[1743955255228,1.5955715,581.14,580.33,1.28399681]
[1743955255624,0.34415115,581.14,580.33,1.28399681]
[1743955257228,1.25142035,581.13,580.33,1.28399681]